[Event "*** Titled Tuesday Blitz"]
[Site "Chess.com"]
[Date "2018.09.04"]
[Round "5"]
[White "Nakachuk"]
[Black "JammyDodger91"]
[Result "0-1"]
[WhiteElo "2674"]
[BlackElo "2421"]
[TimeControl "180+2"]
[EndTime "14:38:45 PDT"]
[Termination "JammyDodger91 won by resignation"]

1. Nf3 {[%clk 0:03:01.9]} 1... d5 {[%clk 0:03:00.5]} 2. g3 {[%clk 0:02:56.8]}
2... Nf6 {[%clk 0:02:58.4]} 3. Bg2 {[%clk 0:02:57.4]} 3... c6 {[%clk 0:02:55]}
4. O-O {[%clk 0:02:58.8]} 4... Bf5 {[%clk 0:02:55]} 5. d3 {[%clk 0:02:59.6]}
5... e6 {[%clk 0:02:55.5]} 6. c4 {[%clk 0:02:57.4]} 6... Be7 {[%clk 0:02:54.9]}
7. Nc3 {[%clk 0:02:43.7]} 7... h6 {[%clk 0:02:52.6]} 8. cxd5 {[%clk 0:02:44.3]}
8... exd5 {[%clk 0:02:52.9]} 9. Nd4 {[%clk 0:02:45.3]} 9... Bh7 {[%clk
0:02:52.7]} 10. e4 {[%clk 0:02:46.6]} 10... dxe4 {[%clk 0:02:47.1]} 11. dxe4
{[%clk 0:02:48.5]} 11... Nbd7 {[%clk 0:02:48.2]} 12. Nf5 {[%clk 0:02:47.5]}
12... Bxf5 {[%clk 0:02:48.2]} 13. exf5 {[%clk 0:02:49.4]} 13... O-O {[%clk
0:02:49]} 14. Be3 {[%clk 0:02:47.1]} 14... Bc5 {[%clk 0:02:49.4]} 15. Bf4 {[%clk
0:02:44.8]} 15... Nb6 {[%clk 0:02:47.1]} 16. Qc2 {[%clk 0:02:44.6]} 16... Re8
{[%clk 0:02:39.9]} 17. Rad1 {[%clk 0:02:37]} 17... Qe7 {[%clk 0:02:40.1]} 18. a3
{[%clk 0:02:38.4]} 18... Rad8 {[%clk 0:02:34.3]} 19. b4 {[%clk 0:02:27.5]} 19...
Bd4 {[%clk 0:02:29.6]} 20. Rd3 {[%clk 0:02:22.6]} 20... Bxc3 {[%clk 0:02:24]}
21. Rxc3 {[%clk 0:02:24.5]} 21... Nbd5 {[%clk 0:02:20.7]} 22. Rc4 {[%clk
0:02:21.2]} 22... Nxf4 {[%clk 0:02:03.9]} 23. Rxf4 {[%clk 0:02:23.1]} 23... Qe5
{[%clk 0:02:04.9]} 24. h4 {[%clk 0:02:20.8]} 24... h5 {[%clk 0:02:01.7]} 25. Rb1
{[%clk 0:02:17.2]} 25... Rd6 {[%clk 0:01:51.9]} 26. Rc4 {[%clk 0:02:16.2]} 26...
Red8 {[%clk 0:01:48.7]} 27. Rc5 {[%clk 0:02:15.5]} 27... Qe7 {[%clk 0:01:47.5]}
28. Bf3 {[%clk 0:01:55.3]} 28... Rd2 {[%clk 0:01:38.1]} 29. Qc1 {[%clk
0:01:48.4]} 29... Qd6 {[%clk 0:01:30.5]} 30. Kg2 {[%clk 0:01:34.3]} 30... Qd4
{[%clk 0:01:24]} 31. Qe1 {[%clk 0:01:35.1]} 31... Re8 {[%clk 0:01:20.8]} 32. Qf1
{[%clk 0:01:33.4]} 32... Ng4 {[%clk 0:01:14.1]} 33. Bxg4 {[%clk 0:01:32.9]}
33... hxg4 {[%clk 0:01:16]} 34. Rbc1 {[%clk 0:01:28.5]} 34... Ree2 {[%clk
0:01:16.1]} 0-1

[Event "*** Titled Tuesday Blitz"]
[Site "Chess.com"]
[Date "2018.09.04"]
[Round "5"]
[White "Bryakin_Mikhail"]
[Black "A-Fier"]
[Result "0-1"]
[WhiteElo "2535"]
[BlackElo "2756"]
[TimeControl "180+2"]
[EndTime "14:38:59 PDT"]
[Termination "A-Fier won by resignation"]

1. d4 {[%clk 0:02:58.3]} 1... Nf6 {[%clk 0:03:01]} 2. c4 {[%clk 0:02:53.8]} 2...
c5 {[%clk 0:03:02.9]} 3. d5 {[%clk 0:02:54.2]} 3... e6 {[%clk 0:03:03.7]} 4. Nc3
{[%clk 0:02:54.2]} 4... exd5 {[%clk 0:03:05.3]} 5. cxd5 {[%clk 0:02:56]} 5... d6
{[%clk 0:03:06.8]} 6. g3 {[%clk 0:02:55.6]} 6... g6 {[%clk 0:03:08]} 7. Bg2
{[%clk 0:02:55.6]} 7... Bg7 {[%clk 0:03:09.6]} 8. Nf3 {[%clk 0:02:57.1]} 8...
O-O {[%clk 0:03:11.2]} 9. O-O {[%clk 0:02:58.2]} 9... Re8 {[%clk 0:03:12.8]} 10.
Bf4 {[%clk 0:02:54.6]} 10... Bf5 {[%clk 0:03:12.7]} 11. h3 {[%clk 0:02:36.1]}
11... Ne4 {[%clk 0:03:11.5]} 12. Nxe4 {[%clk 0:02:27.2]} 12... Bxe4 {[%clk
0:03:12.5]} 13. Nd2 {[%clk 0:02:23.7]} 13... Bxg2 {[%clk 0:03:12.7]} 14. Kxg2
{[%clk 0:02:25.6]} 14... Bxb2 {[%clk 0:03:13.6]} 15. Rb1 {[%clk 0:02:26.5]}
15... Be5 {[%clk 0:03:07.4]} 16. Rxb7 {[%clk 0:02:11.7]} 16... Bxf4 {[%clk
0:03:07.4]} 17. gxf4 {[%clk 0:02:08.9]} 17... Nd7 {[%clk 0:03:09.3]} 18. Nc4
{[%clk 0:01:55.2]} 18... Nb6 {[%clk 0:03:09]} 19. Nxb6 {[%clk 0:01:43.7]} 19...
axb6 {[%clk 0:03:10.9]} 20. Qb3 {[%clk 0:01:41.7]} 20... Re4 {[%clk 0:03:03]}
21. Qxb6 {[%clk 0:01:37.6]} 21... Qf6 {[%clk 0:03:02.5]} 22. e3 {[%clk
0:01:33.6]} 22... Rxa2 {[%clk 0:02:59.5]} 23. Rb8+ {[%clk 0:01:26]} 23... Kg7
{[%clk 0:03:00.7]} 24. Qd8 {[%clk 0:00:56.6]} 24... Qxd8 {[%clk 0:03:00.7]} 25.
Rxd8 {[%clk 0:00:58.5]} 25... Rxe3 {[%clk 0:03:02.2]} 26. Rxd6 {[%clk
0:00:59.7]} 26... Rd3 {[%clk 0:03:03.6]} 27. Rc1 {[%clk 0:00:52.5]} 27... Rdd2
{[%clk 0:03:04.8]} 28. Rxc5 {[%clk 0:00:52.9]} 28... Rxf2+ {[%clk 0:03:06.3]}
29. Kg3 {[%clk 0:00:53.8]} 29... Rg2+ {[%clk 0:03:07.9]} 30. Kf3 {[%clk
0:00:54.5]} 30... Raf2+ {[%clk 0:03:09.5]} 31. Ke3 {[%clk 0:00:55.3]} 31... Ra2
{[%clk 0:03:11]} 32. Rc7 {[%clk 0:00:50]} 32... Rg3+ {[%clk 0:03:11.3]} 33. Kd4
{[%clk 0:00:40.7]} 33... Ra4+ {[%clk 0:03:13.2]} 34. Rc4 {[%clk 0:00:38.1]}
34... Rxc4+ {[%clk 0:03:14.6]} 35. Kxc4 {[%clk 0:00:40]} 35... Rxh3 {[%clk
0:03:16.1]} 36. Kd4 {[%clk 0:00:16.4]} 36... Rf3 {[%clk 0:03:16.8]} 37. Ke4
{[%clk 0:00:17]} 37... Rf1 {[%clk 0:03:18.4]} 38. Rd8 {[%clk 0:00:12.2]} 38...
Kf6 {[%clk 0:03:18.7]} 39. Rd7 {[%clk 0:00:05.9]} 39... h5 {[%clk 0:03:19.3]}
40. Ke3 {[%clk 0:00:06.9]} 40... h4 {[%clk 0:03:20.5]} 41. Rd8 {[%clk
0:00:07.6]} 41... Kg7 {[%clk 0:03:20.7]} 42. d6 {[%clk 0:00:03.9]} 42... h3
{[%clk 0:03:21.9]} 43. d7 {[%clk 0:00:04.8]} 43... Rd1 {[%clk 0:03:22.6]} 44.
Ra8 {[%clk 0:00:04.4]} 44... Rxd7 {[%clk 0:03:22.2]} 45. Ra2 {[%clk 0:00:04.9]}
45... Rd8 {[%clk 0:03:23.5]} 46. Rh2 {[%clk 0:00:05.9]} 46... Rh8 {[%clk
0:03:25]} 47. Kf3 {[%clk 0:00:07.6]} 47... Kf6 {[%clk 0:03:26.2]} 48. Kg4 {[%clk
0:00:09.5]} 48... Rh7 {[%clk 0:03:26.7]} 49. Kg3 {[%clk 0:00:05.1]} 49... Kf5
{[%clk 0:03:27.9]} 50. Kf3 {[%clk 0:00:06.4]} 50... Rh4 {[%clk 0:03:27.9]} 51.
Kg3 {[%clk 0:00:07.8]} 51... Rxf4 {[%clk 0:03:28.7]} 52. Rxh3 {[%clk 0:00:08.4]}
52... Ra4 {[%clk 0:03:29.4]} 53. Rh8 {[%clk 0:00:09]} 53... Ra3+ {[%clk
0:03:30.7]} 54. Kf2 {[%clk 0:00:10.4]} 54... Kg4 {[%clk 0:03:32.2]} 55. Rb8
{[%clk 0:00:11.3]} 55... f5 {[%clk 0:03:32.9]} 56. Rb4+ {[%clk 0:00:12.4]} 56...
f4 {[%clk 0:03:34.3]} 57. Kf1 {[%clk 0:00:13.7]} 0-1

[Event "*** Titled Tuesday Blitz"]
[Site "Chess.com"]
[Date "2018.09.04"]
[Round "5"]
[White "maziarbagheri"]
[Black "Kimster98"]
[Result "1/2-1/2"]
[WhiteElo "2316"]
[BlackElo "2474"]
[TimeControl "180+2"]
[EndTime "14:39:01 PDT"]
[Termination "Game drawn by agreement"]

1. Nf3 {[%clk 0:03:01.9]} 1... d6 {[%clk 0:03:01.9]} 2. c4 {[%clk 0:03:01.9]}
2... e5 {[%clk 0:03:02.9]} 3. Nc3 {[%clk 0:03:02.7]} 3... f5 {[%clk 0:03:03.7]}
4. d4 {[%clk 0:03:00.5]} 4... e4 {[%clk 0:03:03.9]} 5. Nd2 {[%clk 0:03:01.3]}
5... Nf6 {[%clk 0:03:05.1]} 6. e3 {[%clk 0:03:02.4]} 6... c6 {[%clk 0:03:05.6]}
7. b4 {[%clk 0:02:59.8]} 7... Be6 {[%clk 0:02:56.7]} 8. Rb1 {[%clk 0:02:51.5]}
8... Nbd7 {[%clk 0:02:55.7]} 9. Be2 {[%clk 0:02:51.4]} 9... Be7 {[%clk
0:02:50.5]} 10. c5 {[%clk 0:02:50.9]} 10... d5 {[%clk 0:02:49]} 11. a4 {[%clk
0:02:50.9]} 11... b6 {[%clk 0:02:24.5]} 12. Nb3 {[%clk 0:02:45.4]} 12... O-O
{[%clk 0:02:20.3]} 13. g3 {[%clk 0:02:38.8]} 13... g5 {[%clk 0:02:19.5]} 14. h4
{[%clk 0:02:38.1]} 14... h6 {[%clk 0:02:19.8]} 15. hxg5 {[%clk 0:02:38.7]} 15...
hxg5 {[%clk 0:02:19.7]} 16. a5 {[%clk 0:02:32.5]} 16... b5 {[%clk 0:02:14.5]}
17. Kd2 {[%clk 0:02:33.1]} 17... a6 {[%clk 0:02:14.6]} 18. Kc2 {[%clk
0:02:30.1]} 18... g4 {[%clk 0:02:11.3]} 19. Bf1 {[%clk 0:02:15.7]} 19... Kg7
{[%clk 0:02:11.4]} 20. Ne2 {[%clk 0:02:16.5]} 20... Rh8 {[%clk 0:02:07.8]} 21.
Rxh8 {[%clk 0:02:15.3]} 21... Qxh8 {[%clk 0:02:09.7]} 22. Nf4 {[%clk 0:02:16]}
22... Bf7 {[%clk 0:02:10.9]} 23. Bd2 {[%clk 0:02:15.4]} 23... Nf8 {[%clk
0:02:08.5]} 24. Nc1 {[%clk 0:02:15.3]} 24... Ne6 {[%clk 0:02:08.8]} 25. Nce2
{[%clk 0:02:15.8]} 25... Nxf4 {[%clk 0:02:09.9]} 26. Nxf4 {[%clk 0:02:17.7]}
26... Nh5 {[%clk 0:02:11.4]} 27. Bg2 {[%clk 0:02:14.8]} 27... Nxf4 {[%clk
0:02:11.1]} 28. exf4 {[%clk 0:02:12.8]} 28... Qh6 {[%clk 0:02:07.1]} 29. Qh1
{[%clk 0:02:06.9]} 29... Qf6 {[%clk 0:02:06.9]} 30. Be3 {[%clk 0:02:07.6]} 30...
Rh8 {[%clk 0:02:07.2]} 31. Qg1 {[%clk 0:02:08.3]} 31... Kg8 {[%clk 0:02:08.3]}
32. Rd1 {[%clk 0:02:08.7]} 32... Bf8 {[%clk 0:02:08.8]} 33. Kc3 {[%clk
0:02:09.7]} 33... Bg7 {[%clk 0:02:10.1]} 34. Qf1 {[%clk 0:02:09.6]} 34... Kf8
{[%clk 0:02:10.3]} 35. Qe2 {[%clk 0:02:10.7]} 35... Bh5 {[%clk 0:02:08.4]} 36.
Rg1 {[%clk 0:02:11.6]} 36... Rh6 {[%clk 0:02:09.5]} 37. Qf1 {[%clk 0:02:12.3]}
37... Ke7 {[%clk 0:02:10.4]} 38. Rh1 {[%clk 0:02:13.3]} 38... Qg6 {[%clk
0:02:11]} 39. Rh2 {[%clk 0:02:13.7]} 39... Qh7 {[%clk 0:02:12.1]} 40. Qh1 {[%clk
0:02:14.8]} 40... Kd7 {[%clk 0:02:11.4]} 41. Rh4 {[%clk 0:02:15.4]} 41... Bf6
{[%clk 0:02:11.3]} 42. Rh2 {[%clk 0:02:15.9]} 42... Ke6 {[%clk 0:02:08]} 43. Bf1
{[%clk 0:02:16.8]} 43... Kf7 {[%clk 0:02:08.8]} 44. Bg2 {[%clk 0:02:17.5]} 44...
Kg6 {[%clk 0:02:09.4]} 45. Bf1 {[%clk 0:02:18.5]} 45... Kg7 {[%clk 0:02:10.8]}
46. Bg2 {[%clk 0:02:19.7]} 46... Qh8 {[%clk 0:02:07.4]} 47. Bf1 {[%clk
0:02:20.4]} 47... Kg6 {[%clk 0:02:08.6]} 48. Be2 {[%clk 0:02:21.3]} 48... Kg7
{[%clk 0:02:09]} 49. Bf1 {[%clk 0:02:21.9]} 49... Rh7 {[%clk 0:02:08.4]} 50. Be2
{[%clk 0:02:22.9]} 50... Qe8 {[%clk 0:02:06.6]} 51. Bf1 {[%clk 0:02:23.7]} 51...
Qf7 {[%clk 0:02:06.1]} 52. Be2 {[%clk 0:02:24.5]} 52... Qg6 {[%clk 0:02:06.2]}
53. Qg2 {[%clk 0:02:24.4]} 53... Rh6 {[%clk 0:02:06.9]} 54. Qg1 {[%clk
0:02:25.1]} 54... Qh7 {[%clk 0:02:08.1]} 55. Qg2 {[%clk 0:02:26.2]} 55... Kf7
{[%clk 0:02:08.9]} 56. Qh1 {[%clk 0:02:27]} 56... Kg7 {[%clk 0:02:10.1]} 57. Bf1
{[%clk 0:02:28.2]} 57... Bg6 {[%clk 0:02:02.8]} 58. Rxh6 {[%clk 0:02:28.1]}
58... Qxh6 {[%clk 0:02:04.7]} 59. Qxh6+ {[%clk 0:02:28.4]} 59... Kxh6 {[%clk
0:02:06.6]} 60. Be2 {[%clk 0:02:28.4]} 60... Kh5 {[%clk 0:02:07.9]} 61. Bf1
{[%clk 0:02:28.4]} 61... Bf7 {[%clk 0:02:05.8]} 62. Be2 {[%clk 0:02:29.1]} 62...
Be6 {[%clk 0:02:07.2]} 63. Bf1 {[%clk 0:02:29.9]} 63... Bd7 {[%clk 0:02:07.2]}
64. Be2 {[%clk 0:02:31.2]} 64... Be6 {[%clk 0:02:06.5]} 65. Bf1 {[%clk
0:02:32.6]} 65... Kg6 {[%clk 0:02:06.1]} 1/2-1/2

[Event "*** Titled Tuesday Blitz"]
[Site "Chess.com"]
[Date "2018.09.04"]
[Round "5"]
[White "farzadbfd"]
[Black "PaulfromSPb"]
[Result "1-0"]
[WhiteElo "2542"]
[BlackElo "2624"]
[TimeControl "180+2"]
[EndTime "14:39:06 PDT"]
[Termination "farzadbfd won by resignation"]

1. e4 {[%clk 0:03:01.9]} 1... c5 {[%clk 0:02:58.8]} 2. Nc3 {[%clk 0:03:02.6]}
2... Nc6 {[%clk 0:02:59.4]} 3. g3 {[%clk 0:03:03.1]} 3... g6 {[%clk 0:02:59.7]}
4. Bg2 {[%clk 0:03:04.6]} 4... Bg7 {[%clk 0:03:00.5]} 5. d3 {[%clk 0:03:05.7]}
5... d6 {[%clk 0:02:56.4]} 6. Be3 {[%clk 0:03:06.6]} 6... Nd4 {[%clk 0:02:57]}
7. Qd2 {[%clk 0:03:07.5]} 7... Rb8 {[%clk 0:02:56.1]} 8. Nd1 {[%clk 0:03:08.6]}
8... h5 {[%clk 0:02:50.4]} 9. c3 {[%clk 0:03:08.5]} 9... Nc6 {[%clk 0:02:51.3]}
10. h3 {[%clk 0:03:08.9]} 10... b5 {[%clk 0:02:48.6]} 11. Ne2 {[%clk 0:03:09.8]}
11... b4 {[%clk 0:02:49.6]} 12. O-O {[%clk 0:03:06.4]} 12... bxc3 {[%clk
0:02:50.5]} 13. bxc3 {[%clk 0:03:07.1]} 13... e5 {[%clk 0:02:50.7]} 14. f4
{[%clk 0:03:07.8]} 14... Nge7 {[%clk 0:02:51]} 15. f5 {[%clk 0:01:42.6]} 15...
gxf5 {[%clk 0:02:51.2]} 16. exf5 {[%clk 0:01:43.5]} 16... f6 {[%clk 0:02:52.4]}
17. g4 {[%clk 0:01:38.5]} 17... hxg4 {[%clk 0:02:52.3]} 18. hxg4 {[%clk
0:01:40.4]} 18... Ba6 {[%clk 0:02:50.5]} 19. Ng3 {[%clk 0:01:38.9]} 19... Rh4
{[%clk 0:02:36.6]} 20. Nf2 {[%clk 0:01:38.3]} 20... Nd4 {[%clk 0:02:32.3]} 21.
cxd4 {[%clk 0:01:33.4]} 21... cxd4 {[%clk 0:02:33]} 22. Bg5 {[%clk 0:01:32.6]}
22... Rh7 {[%clk 0:02:30.7]} 23. Nh5 {[%clk 0:00:52.1]} 23... fxg5 {[%clk
0:02:30.6]} 24. f6 {[%clk 0:00:51.9]} 24... Rxh5 {[%clk 0:02:24.5]} 25. fxe7
{[%clk 0:00:50.9]} 25... Qxe7 {[%clk 0:02:11.4]} 26. gxh5 {[%clk 0:00:51.7]}
26... Qe6 {[%clk 0:01:57.3]} 27. Qxg5 {[%clk 0:00:47.8]} 27... Bh6 {[%clk
0:01:56.7]} 28. Qg6+ {[%clk 0:00:47]} 28... Qxg6 {[%clk 0:01:57.6]} 29. hxg6
{[%clk 0:00:48.9]} 29... Be3 {[%clk 0:01:52.9]} 30. Be4 {[%clk 0:00:43.5]} 30...
Ke7 {[%clk 0:01:48.6]} 31. Kg2 {[%clk 0:00:42.1]} 31... Rb2 {[%clk 0:01:49.5]}
32. Rab1 {[%clk 0:00:32.4]} 32... Rc2 {[%clk 0:01:47.3]} 33. Rb8 {[%clk
0:00:27.1]} 33... d5 {[%clk 0:01:47.9]} 34. g7 {[%clk 0:00:25.4]} 34... dxe4
{[%clk 0:01:41.2]} 35. g8=Q {[%clk 0:00:26.2]} 1-0

[Event "*** Titled Tuesday Blitz"]
[Site "Chess.com"]
[Date "2018.09.04"]
[Round "5"]
[White "Pudor"]
[Black "tteshan"]
[Result "1/2-1/2"]
[WhiteElo "2221"]
[BlackElo "2053"]
[TimeControl "180+2"]
[EndTime "14:39:50 PDT"]
[Termination "Game drawn by repetition"]

1. d4 {[%clk 0:03:01.9]} 1... d5 {[%clk 0:02:59.5]} 2. c4 {[%clk 0:03:01.1]}
2... dxc4 {[%clk 0:03:01]} 3. Nf3 {[%clk 0:03:01.3]} 3... Nf6 {[%clk 0:03:01.8]}
4. e3 {[%clk 0:03:01.8]} 4... Bg4 {[%clk 0:03:02.3]} 5. Bxc4 {[%clk 0:03:02.1]}
5... e6 {[%clk 0:03:03.9]} 6. O-O {[%clk 0:03:01.4]} 6... a6 {[%clk 0:03:03.8]}
7. Nc3 {[%clk 0:02:57.3]} 7... Nc6 {[%clk 0:03:01.6]} 8. b3 {[%clk 0:02:41]}
8... Bd6 {[%clk 0:02:59.8]} 9. Bb2 {[%clk 0:02:34.2]} 9... O-O {[%clk
0:02:58.9]} 10. Be2 {[%clk 0:02:27.3]} 10... Qe7 {[%clk 0:02:48.7]} 11. e4
{[%clk 0:02:20.5]} 11... Bxf3 {[%clk 0:02:33.2]} 12. Bxf3 {[%clk 0:02:22.4]}
12... Rad8 {[%clk 0:02:28.1]} 13. Ne2 {[%clk 0:02:07.8]} 13... e5 {[%clk
0:02:22.4]} 14. d5 {[%clk 0:02:06]} 14... Na7 {[%clk 0:02:09]} 15. Qc2 {[%clk
0:02:01.6]} 15... c6 {[%clk 0:02:08.2]} 16. dxc6 {[%clk 0:01:59.3]} 16... Nxc6
{[%clk 0:02:08.1]} 17. Rfd1 {[%clk 0:02:00.2]} 17... Ba3 {[%clk 0:02:01.6]} 18.
h3 {[%clk 0:01:43.9]} 18... Bxb2 {[%clk 0:01:56]} 19. Qxb2 {[%clk 0:01:43]}
19... g6 {[%clk 0:01:50.6]} 20. a3 {[%clk 0:01:32.8]} 20... Rxd1+ {[%clk
0:01:47.4]} 21. Rxd1 {[%clk 0:01:33.1]} 21... Rd8 {[%clk 0:01:46.8]} 22. Rxd8+
{[%clk 0:01:31.9]} 22... Qxd8 {[%clk 0:01:47.1]} 23. Qc2 {[%clk 0:01:33.1]}
23... Nd4 {[%clk 0:01:40.9]} 24. Nxd4 {[%clk 0:01:32.4]} 24... exd4 {[%clk
0:01:37.5]} 25. e5 {[%clk 0:01:08.2]} 25... Nd5 {[%clk 0:01:35.5]} 26. Qc4
{[%clk 0:00:53.4]} 26... Nc3 {[%clk 0:01:33.4]} 27. Bxb7 {[%clk 0:00:53.6]}
27... a5 {[%clk 0:01:10.3]} 28. e6 {[%clk 0:00:49.8]} 28... fxe6 {[%clk
0:01:06.2]} 29. Qxe6+ {[%clk 0:00:51.7]} 29... Kg7 {[%clk 0:01:04.6]} 30. Qe5+
{[%clk 0:00:52.7]} 30... Kh6 {[%clk 0:00:57.5]} 31. Qf4+ {[%clk 0:00:38.4]}
31... Kg7 {[%clk 0:00:55.9]} 32. Qe5+ {[%clk 0:00:39.6]} 32... Kh6 {[%clk
0:00:54.9]} 33. Qf4+ {[%clk 0:00:37.9]} 33... Kg7 {[%clk 0:00:54.1]} 34. Qe5+
{[%clk 0:00:38.8]} 1/2-1/2

[Event "*** Titled Tuesday Blitz"]
[Site "Chess.com"]
[Date "2018.09.04"]
[Round "5"]
[White "novocane"]
[Black "Karina_Oparina"]
[Result "0-1"]
[WhiteElo "2129"]
[BlackElo "2183"]
[TimeControl "180+2"]
[EndTime "14:40:00 PDT"]
[Termination "Karina_Oparina won by checkmate"]

1. d4 {[%clk 0:03:01.8]} 1... Nf6 {[%clk 0:02:58]} 2. c4 {[%clk 0:03:02.5]} 2...
e6 {[%clk 0:02:59.1]} 3. Nc3 {[%clk 0:03:03.4]} 3... Bb4 {[%clk 0:02:58.6]} 4.
e3 {[%clk 0:03:04.9]} 4... c5 {[%clk 0:02:58.2]} 5. Ne2 {[%clk 0:03:05.7]} 5...
cxd4 {[%clk 0:02:58.1]} 6. exd4 {[%clk 0:03:06.8]} 6... d5 {[%clk 0:02:59.3]} 7.
a3 {[%clk 0:03:07.4]} 7... Bxc3+ {[%clk 0:02:56.4]} 8. Nxc3 {[%clk 0:03:08.1]}
8... dxc4 {[%clk 0:02:55]} 9. Bxc4 {[%clk 0:03:08.1]} 9... O-O {[%clk
0:02:56.1]} 10. O-O {[%clk 0:03:08.2]} 10... Nbd7 {[%clk 0:02:55.8]} 11. Re1
{[%clk 0:03:02.7]} 11... Nb6 {[%clk 0:02:49.5]} 12. Ba2 {[%clk 0:03:00.1]} 12...
h6 {[%clk 0:02:48.2]} 13. Bf4 {[%clk 0:02:54.9]} 13... Nbd5 {[%clk 0:02:48.3]}
14. Be5 {[%clk 0:02:53.2]} 14... b6 {[%clk 0:02:48.7]} 15. Qf3 {[%clk
0:02:37.3]} 15... Bb7 {[%clk 0:02:48]} 16. Qh3 {[%clk 0:02:32.5]} 16... Rc8
{[%clk 0:02:41.1]} 17. Ne4 {[%clk 0:02:04.8]} 17... Rc2 {[%clk 0:02:31.7]} 18.
Bb1 {[%clk 0:00:29.3]} 18... Rxb2 {[%clk 0:02:13.7]} 19. Nxf6+ {[%clk
0:00:24.6]} 19... Nxf6 {[%clk 0:02:11.3]} 20. Qd3 {[%clk 0:00:22.5]} 20... Re8
{[%clk 0:02:00.4]} 21. Qg3 {[%clk 0:00:15.6]} 21... Bd5 {[%clk 0:01:39.7]} 22.
h4 {[%clk 0:00:16.1]} 22... Rb3 {[%clk 0:01:37.8]} 23. Qf4 {[%clk 0:00:12.2]}
23... Nh5 {[%clk 0:01:32]} 24. Qg4 {[%clk 0:00:13.2]} 24... Nf6 {[%clk
0:01:30.7]} 25. Qf4 {[%clk 0:00:14]} 25... Nh5 {[%clk 0:01:29.3]} 26. Qg4 {[%clk
0:00:14.7]} 26... Nf6 {[%clk 0:01:30.4]} 27. Qf4 {[%clk 0:00:15.6]} 27... Qe7
{[%clk 0:01:10.5]} 28. g4 {[%clk 0:00:16]} 28... Nd7 {[%clk 0:01:09]} 29. g5
{[%clk 0:00:16.5]} 29... Nxe5 {[%clk 0:01:06]} 30. Rxe5 {[%clk 0:00:16.2]} 30...
Rh3 {[%clk 0:00:59.1]} 31. Bf5 {[%clk 0:00:13.6]} 31... Rh1# {[%clk 0:00:57.9]}
0-1

[Event "*** Titled Tuesday Blitz"]
[Site "Chess.com"]
[Date "2018.09.04"]
[Round "5"]
[White "alpasya2009"]
[Black "Vuk2000"]
[Result "1-0"]
[WhiteElo "2466"]
[BlackElo "2704"]
[TimeControl "180+2"]
[EndTime "14:40:03 PDT"]
[Termination "alpasya2009 won by resignation"]

1. d4 {[%clk 0:03:01.9]} 1... e6 {[%clk 0:03:00.6]} 2. c4 {[%clk 0:03:03.1]}
2... Nf6 {[%clk 0:03:02.5]} 3. Nf3 {[%clk 0:03:04.2]} 3... b6 {[%clk 0:03:03.3]}
4. g3 {[%clk 0:02:56.5]} 4... Ba6 {[%clk 0:03:04.1]} 5. Qa4 {[%clk 0:02:56.2]}
5... c5 {[%clk 0:03:03]} 6. dxc5 {[%clk 0:02:56.5]} 6... Bxc5 {[%clk 0:03:04.9]}
7. Bg2 {[%clk 0:02:56.9]} 7... Bb7 {[%clk 0:03:01.6]} 8. O-O {[%clk 0:02:56.5]}
8... O-O {[%clk 0:03:02.4]} 9. Nc3 {[%clk 0:02:56.3]} 9... Na6 {[%clk
0:03:03.3]} 10. Rd1 {[%clk 0:02:56.1]} 10... Qc8 {[%clk 0:03:04]} 11. Bf4 {[%clk
0:02:56]} 11... Be7 {[%clk 0:02:59.2]} 12. Ng5 {[%clk 0:02:24.2]} 12... Bxg2
{[%clk 0:02:53.4]} 13. Kxg2 {[%clk 0:02:26.1]} 13... Qb7+ {[%clk 0:02:54.5]} 14.
f3 {[%clk 0:02:22.5]} 14... h6 {[%clk 0:02:52.6]} 15. Nge4 {[%clk 0:02:22.5]}
15... Nxe4 {[%clk 0:02:53.6]} 16. Nxe4 {[%clk 0:02:22.4]} 16... Rfd8 {[%clk
0:02:47.4]} 17. Bd6 {[%clk 0:02:19.6]} 17... Bf8 {[%clk 0:02:22.2]} 18. Bxf8
{[%clk 0:02:18.7]} 18... Rxf8 {[%clk 0:02:24.1]} 19. Rxd7 {[%clk 0:02:07.5]}
19... Qc8 {[%clk 0:02:22.7]} 20. Rad1 {[%clk 0:01:58.1]} 20... Nc5 {[%clk
0:02:23.5]} 21. Nxc5 {[%clk 0:01:58.3]} 21... Qxc5 {[%clk 0:02:25.4]} 22. b3
{[%clk 0:01:48.1]} 22... a6 {[%clk 0:02:22.4]} 23. R1d4 {[%clk 0:01:39.8]} 23...
b5 {[%clk 0:02:20.9]} 24. Qa5 {[%clk 0:01:37.9]} 24... Rfc8 {[%clk 0:02:16.2]}
25. b4 {[%clk 0:01:16.7]} 25... Qc6 {[%clk 0:02:11.2]} 26. c5 {[%clk 0:01:14.4]}
26... Rcb8 {[%clk 0:01:59]} 27. Rd8+ {[%clk 0:00:56.8]} 27... Kh7 {[%clk
0:01:33.9]} 28. R4d6 {[%clk 0:00:56.4]} 28... Qb7 {[%clk 0:01:34.8]} 29. R8d7
{[%clk 0:00:54.5]} 29... Qc8 {[%clk 0:01:35.7]} 30. Rxf7 {[%clk 0:00:54]} 30...
Qg8 {[%clk 0:01:35]} 31. Rdd7 {[%clk 0:00:51]} 31... Rf8 {[%clk 0:01:35.8]} 32.
Qc7 {[%clk 0:00:39.8]} 32... Rxf7 {[%clk 0:01:35.4]} 33. Rxf7 {[%clk 0:00:41.7]}
33... Kh8 {[%clk 0:01:33.3]} 34. Re7 {[%clk 0:00:37.4]} 34... Rc8 {[%clk
0:01:15.6]} 35. Qd7 {[%clk 0:00:34.9]} 35... e5 {[%clk 0:01:12.4]} 36. Rxg7
{[%clk 0:00:28.3]} 36... Qxg7 {[%clk 0:01:02.6]} 37. Qxc8+ {[%clk 0:00:29.2]}
37... Kh7 {[%clk 0:01:03.8]} 38. c6 {[%clk 0:00:29.8]} 38... e4 {[%clk
0:01:04.7]} 39. Qd7 {[%clk 0:00:29]} 1-0